Cogmind - Beta 14 @@@ ROGUE MODE // 2024.08.17 @ 01:01:58 Player: Lillith Result: Destroyed self with Rocket Launcher Performance ------------- Evolutions (0) 0 Regions Visited (4) 800 Robots Destroyed (35) 175 Value Destroyed (584) 584 Prototype IDs (25) 500 Alien Tech Used (0) 0 Bonus (300) 300 TOTAL SCORE: 2359 Bonus ------- Aligned with FarCom 300 Cogmind --------- Core Integrity 0/250 Matter 259/300 Energy 115/125 System Corruption 0% Temperature Cool (3) Movement Rolling (135) Ox3 Location -9/Mines Parts ------- > --- POWER (1) -------- Light Ion Engine > --- PROPULSION (2) --- Wheel Compact Wheel > --- UTILITY (2) ------ Huge Storage Unit Medium Armor Plating > --- WEAPON (2) ------- Rocket Launcher > --- INVENTORY (25) --- Light Treads Light Treads Experimental Sensor Array Terrain Scanner Seismic Detector Medium Armor Plating Skeleton Box Trap Reconfigurator Army-in-a-Box (30/30) EM Pulse Gun Improved EM Shotgun Improved EM Shotgun Light Assault Rifle Light Assault Rifle Light Assault Rifle Mini Grenade Launcher Hammer Peak State ------------ > --- POWER ------------ Light Ion Engine > --- PROPULSION ------- Wheel Compact Wheel > --- UTILITY ---------- Huge Storage Unit Experimental Sensor Array > --- WEAPON ----------- (None) > --- INVENTORY -------- Light Treads Light Treads Aluminum Leg Aluminum Leg Large Storage Unit Terrain Scanner Seismic Detector Medium Armor Plating Skeleton Box Trap Reconfigurator Army-in-a-Box EM Pulse Gun Improved EM Shotgun Improved EM Shotgun Light Assault Rifle Light Assault Rifle Light Assault Rifle Rocket Launcher Mini Grenade Launcher Hammer [Rating: 22] Favorites ----------- Power Ion Engine Engine Ion Engine Propulsion Light Treads Treads Light Treads Leg Aluminum Leg Wheel Wheel Utility Huge Storage Unit Device Terrain Scanner Storage Huge Storage Unit Protection Medium Armor Plating Weapon Improved EM Shotgun Energy Gun Improved EM Shotgun Ballistic Gun Light Assault Rifle Launcher Rocket Launcher Impact Weapon Hammer Build | -11 -10 -10 -10 -9 ------- Run | Yrd Mat Min Exi Min Slots Evolved . | . . . . . Power . | . . . . . Propulsion . | . . . . . Utility . | . . . . . Weapon . | . . . . . Parts Attached 26 | 6 10 3 . 7 Power 3 | 1 1 . . 1 Engine 3 | 1 1 . . 1 Core . | . . . . . Reactor . | . . . . . Propulsion 6 | 2 1 . . 3 Treads 3 | 2 1 . . . Leg 1 | . . . . 1 Wheel 2 | . . . . 2 Hover . | . . . . . Flight . | . . . . . Utility 8 | 1 4 1 . 2 Device 2 | . 1 . . 1 Storage 3 | 1 2 . . . Processor . | . . . . . Hackware . | . . . . . Protection 3 | . 1 1 . 1 Artifact . | . . . . . Weapon 9 | 2 4 2 . 1 Energy Gun 4 | 1 1 2 . . Energy Cannon . | . . . . . Ballistic Gun 3 | 1 2 . . . Ballistic Cannon . | . . . . . Launcher 1 | . . . . 1 Special Weapon . | . . . . . Impact Weapon 1 | . 1 . . . Slashing Weapon . | . . . . . Piercing Weapon . | . . . . . Special Melee Weapon . | . . . . . Unidentified Prototypes 2 | . 1 . . 1 Parts Lost 3 | . 1 1 . 1 Power 1 | . . . . 1 Propulsion . | . . . . . Utility 1 | . . 1 . . Weapon 1 | . 1 . . . Highest Loss Streak 1 | . 1 1 . 1 To Critical Strikes . | . . . . . Average Slot Usage (%) 99 | . 99 99 100 84 Engine 14 | . 14 14 14 14 Treads 26 | . 28 28 28 2 Wheel 1 | . . . . 25 Device 2 | . 7 . . . Storage 14 | . 14 14 14 14 Protection 11 | . 5 13 14 14 Energy Gun 20 | . 4 27 28 12 Ballistic Gun 6 | . 21 . . . Peak Build Rating 22 | 6 11 14 20 22 Average Rating 12 | 4 8 13 15 17 On Entrance 9 | . 6 10 13 20 Naked Turns . | . . . . . Heaviest Build 98 | 14 95 98 98 98 Greatest Support 40 | 40 40 40 40 40 Greatest Overweight (x) 3 | . 2 2 2 3 Average Overweight (x) 1 | . . 2 2 2 Largest Inventory Capacity 25 | 8 25 25 25 25 Average Capacity 22 | 7 18 25 25 25 Most Carried 25 | 7 16 16 24 25 Average Carried 15 | 4 13 15 19 23 Final Capacity 25 | 8 25 25 25 25 Final Carried 24 | 6 16 16 24 22 Class Distribution -------------------- 100% | Mutant Dominant Class ---------------- Mutant | -10/Materials Mutant | -10/Mines Mutant | -10/Exiles Mutant | -9/Mines Resources | -11 -10 -10 -10 -9 ----------- Run | Yrd Mat Min Exi Min Matter Collected 572 | 246 252 34 . 40 Remotely . | . . . . . Salvage Created 931 | . 514 269 . 148 Parts 67 | . 32 30 . 5 Haulers Intercepted . | . . . . . Recyclers Shooed . | . . . . . Parts Field Recycled . | . . . . . Retrieved Matter . | . . . . . Parts Self-Destructed . | . . . . . Prevented . | . . . . . Kills | -11 -10 -10 -10 -9 ------- Run | Yrd Mat Min Exi Min Combat Hostiles Destroyed 26 | . 12 11 . 3 Guns 25 | . 12 11 . 2 Classes Destroyed 7 | . 5 2 . . Worker 3 | . 2 1 . . Builder 1 | . . 1 . . Tunneler 1 | . . 1 . . Recycler 1 | . 1 . . . Watcher 3 | . 3 . . . Swarmer 17 | . 6 11 . . Grunt 9 | . 6 . . 3 Best Kill Streak 5 | . 5 4 . 3 Combat Bots Only 4 | . 3 4 . 3 Max Kills in Single Turn 2 | . 2 1 . 1 Gunslinging . | . . . . . Exploded . | . . . . . Melee . | . . . . . Uniques/NPCs Destroyed . | . . . . . Combat | -11 -10 -10 -10 -9 -------- Run | Yrd Mat Min Exi Min Hostile Shots Fired 155 | . 95 42 . 18 Missed 45 | . 28 12 . 5 Damage Taken 1130 | . 683 229 . 218 Core 253 | . 206 23 . 24 Absorbed by Shields . | . . . . . Core Remaining (%) 100 | 100 . . . . Volleys Fired 72 | . 45 19 . 8 Largest 2 | . 2 2 . 2 Hottest 90 | . 70 90 . 90 Shots Fired 141 | . 88 38 . 15 Gun 140 | . 88 38 . 14 Cannon . | . . . . . Launcher 1 | . . . . 1 Special . | . . . . . Kinetic 77 | . 73 4 . . Thermal 15 | . 15 . . . Explosive 1 | . . . . 1 Electromagnetic 48 | . . 34 . 14 Robot Hit Streak 14 | . 11 4 . 14 Robot Miss Streak 6 | . 3 6 . 2 Penetration Max . | . . . . . Secondary Targets 3 | . . 2 . 1 Max Gunslinging Chain 1 | . . 1 . 1 Shots Hit Robots 100 | . 59 27 . 14 Core Hits 49 | . 28 15 . 6 Critical Kills . | . . . . . Critical Parts Destroyed . | . . . . . Critical Strikes 1 | . 1 . . . Burn 1 | . 1 . . . Melee Attacks 1 | . 1 . . . Impact 1 | . 1 . . . Slashing . | . . . . . Piercing . | . . . . . Sneak Attacks . | . . . . . Combat Hostiles . | . . . . . Follow-up Attacks . | . . . . . Damage Inflicted 1270 | . 659 351 . 260 Guns 1214 | . 659 316 . 239 Cannons . | . . . . . Explosions 56 | . . 35 . 21 Melee . | . . . . . Ramming . | . . . . . Kinetic 558 | . 534 24 . . Thermal 181 | . 125 35 . 21 Explosive . | . . . . . Electromagnetic 531 | . . 292 . 239 Impact . | . . . . . Slashing . | . . . . . Piercing . | . . . . . Highest Corruption . | . . . . . Average Corruption . | . . . . . Corruption Purged . | . . . . . Corruption Blocked . | . . . . . Overload Shots . | . . . . . Overflow Damage . | . . . . . Projectiles . | . . . . . Explosions . | . . . . . Melee . | . . . . . Knockbacks . | . . . . . Impact . | . . . . . Kinetic . | . . . . . Secondary . | . . . . . Self-Inflicted Damage 76 | . . . . 76 Shots 2 | . . . . 2 Rammed . | . . . . . Targets Rammed . | . . . . . Kicked . | . . . . . Crushed . | . . . . . Highest Temperature 183 | . 75 183 . 157 Average Temperature 46 | . 17 62 . 73 Received Heat Transfer 332 | . 231 . . 101 Siege Activations . | . . . . . Robots Corrupted 1 | . . . . 1 Combat Hostiles 1 | . . . . 1 Parts Fried 4 | . . 1 . 3 Impact Corruptions . | . . . . . Robots Melted . | . . . . . Combat Hostiles . | . . . . . Parts Melted . | . . . . . Heat Transferred 544 | . 444 50 . 50 Parts Sabotaged . | . . . . . Parts Stolen . | . . . . . Parts Stripped . | . . . . . Power Chain Reactions 2 | . . 1 . 1 Alert | -11 -10 -10 -10 -9 ------- Run | Yrd Mat Min Exi Min Peak Influence 237 | . 210 237 . 77 Initial . | . . . . . Average 53 | . 66 46 . 66 Maximum Alert Level 1 | . 1 1 . . Low Security (%) 94 | 100 98 90 . 100 Level 1 5 | . 1 9 . . Level 2 . | . . . . . Level 3 . | . . . . . Level 4 . | . . . . . Level 5 . | . . . . . High Security . | . . . . . Max Security . | . . . . . Squads Dispatched 1 | . 1 . . . Investigation . | . . . . . Extermination . | . . . . . Reinforcement 1 | . 1 . . . Assault . | . . . . . Garrison . | . . . . . Intercept . | . . . . . Searches Triggered . | . . . . . Construction Impeded . | . . . . . Haulers Reinforced . | . . . . . Active Scanning Responses . | . . . . . Cargo Convoy Interrupts . | . . . . . Stealth | -11 -10 -10 -10 -9 --------- Run | Yrd Mat Min Exi Min Distress Signals . | . . . . . Communications Jammed . | . . . . . Distress Signals . | . . . . . Times Spotted 40 | . 18 13 . 9 Peak Tracking Total 17 | . 4 5 . 17 Tactical Retreats 1 | . . 1 . . Traps | -11 -10 -10 -10 -9 ------- Run | Yrd Mat Min Exi Min Traps Triggered . | . . . . . Indirectly . | . . . . . Trap Hack Attempts . | . . . . . Triggered . | . . . . . Disarmed . | . . . . . Reprogrammed . | . . . . . Reused . | . . . . . Traps Extracted . | . . . . . Installed . | . . . . . Triggered . | . . . . . Machines | -11 -10 -10 -10 -9 ---------- Run | Yrd Mat Min Exi Min Machines Disabled . | . . . . . Max in Single Turn . | . . . . . Machines Repaired . | . . . . . Machines Dismantled . | . . . . . Machines Sabotaged . | . . . . . Overloaded Fab Kills . | . . . . . Hacking | -11 -10 -10 -10 -9 --------- Run | Yrd Mat Min Exi Min Machines Accessed 9 | . 7 . 2 . Terminals 6 | . 6 . . . Fabricators . | . . . . . Repair Stations . | . . . . . Recycling Units 1 | . 1 . . . Scanalyzers . | . . . . . Garrison Access . | . . . . . Total Hacks 22 | . 20 . 2 . Successful 16 | . 14 . 2 . Failed 5 | . 5 . . . Catastrophic . | . . . . . Database Lockouts 1 | . 1 . . . Manual 19 | . 18 . 1 . Terminals 19 | . 19 . . . Fabricators . | . . . . . Repair Stations . | . . . . . Recycling Units 1 | . 1 . . . Scanalyzers . | . . . . . Garrison Access . | . . . . . Terminal Hacks 6 | . 4 . 2 . Record 1 | . . . 1 . Robot Analysis 3 | . 3 . . . Hauler Manifests 1 | . 1 . . . Derelict Proto ID Bank 1 | . . . 1 . Fabricator Hacks . | . . . . . Repair Station Hacks . | . . . . . Recycling Unit Hacks 1 | . 1 . . . Retrieve Components 1 | . 1 . . . Scanalyzer . | . . . . . Garrison Access Hacks . | . . . . . Unauthorized Hacks 9 | . 9 . . . Terminals 9 | . 9 . . . Botnet 4 | . 4 . . . Skim 5 | . 5 . . . Fabricators . | . . . . . Repair Stations . | . . . . . Recycling Units . | . . . . . Scanalyzers . | . . . . . Garrison Access . | . . . . . Data Cores Recovered . | . . . . . Used . | . . . . . Hacking Detections 7 | . 7 . . . Full Trace Events . | . . . . . Feedback Events . | . . . . . Feedback Blocked . | . . . . . Robot Schematics Acquired . | . . . . . Robots Built . | . . . . . Authchips . | . . . . . Time . | . . . . . Total Robot Build Rating . | . . . . . Part Schematics Acquired . | . . . . . Parts Built . | . . . . . Authchips . | . . . . . Time . | . . . . . Total Part Build Rating . | . . . . . Parts Repaired . | . . . . . Time . | . . . . . Parts Recycled . | . . . . . Recycled Matter . | . . . . . Retrieved Matter . | . . . . . Retrieved Components 1 | . 1 . . . Parts Scanalyzed . | . . . . . Part Schematics Acquired . | . . . . . Parts Damaged . | . . . . . Bothacking | -11 -10 -10 -10 -9 ------------ Run | Yrd Mat Min Exi Min Used RIF Installer . | . . . . . Robots Hacked . | . . . . . Non-combat . | . . . . . Combat . | . . . . . Robot Hacks Applied . | . . . . . Relay Couplers Released . | . . . . . Fabnet Peak Effective % . | . . . . . Robots Rewired . | . . . . . Allies Hacked . | . . . . . Hacks Repelled . | . . . . . Allies | -11 -10 -10 -10 -9 -------- Run | Yrd Mat Min Exi Min Total Allies . | . . . . . Largest Group . | . . . . . Highest-Rated Group . | . . . . . Highest-Rated Ally . | . . . . . Total Orders . | . . . . . Ally Attacks . | . . . . . Total Damage . | . . . . . Kills . | . . . . . Allies Corrupted . | . . . . . Allies Melted . | . . . . . Intel | -11 -10 -10 -10 -9 ------- Run | Yrd Mat Min Exi Min Robot Analysis Total 3 | . 3 . . . Derelict Logs Recovered 2 | . . 2 . . Drone Launches . | . . . . . Drone Recoveries . | . . . . . Exploration | -11 -10 -10 -10 -9 ------------- Run | Yrd Mat Min Exi Min Turns Passed 4490 | 98 1298 2029 867 198 Spaces Moved 1550 | 55 496 615 271 113 Core 4 | 4 . . . . Treads 1436 | 51 496 615 271 3 Legs . | . . . . . Wheels 110 | . . . . 110 Hover . | . . . . . Flight . | . . . . . Fastest Speed 50 | 50 160 320 320 135 Average Speed 269 | 152 223 320 320 139 Slowest Speed 320 | 160 320 320 320 320 Overloaded Moves . | . . . . . Propulsion Burnouts . | . . . . . Robots Hopped . | . . . . . Cave-ins Triggered . | . . . . . Exploration Rate (%) 49 | 3 70 93 62 21 Regions Visited 4 Branch Regions 3 Pre-discovered Areas 2 | . 1 . 1 . Known Exits Taken 1 | . 1 . . . Unknown Exits Taken 3 | 1 . 1 1 . Scrap Searched 1 | . . 1 . . Spaces Dug 1 | . 1 . . . Terrain Destroyed 10 | . 1 2 . 7 Melee 1 | . 1 . . . Projectile . | . . . . . AOE 9 | . . 2 . 7 Terrain Rammed . | . . . . . Walls Destroyed . | . . . . . Machines Disabled . | . . . . . Actions | -11 -10 -10 -10 -9 --------- Run | Yrd Mat Min Exi Min Total 1729 | 67 606 640 273 143 Wait 37 | . 36 1 . . Move 1546 | 54 495 614 270 113 Hop . | . . . . . Pick Up 27 | 7 12 2 3 3 Fast Attach 10 | 5 2 . . 3 Attach 6 | 1 1 1 . 3 Detach 5 | . 1 . . 4 Swap 10 | . 7 2 . 1 Drop 15 | . 6 1 . 8 Fire 72 | . 45 19 . 8 Melee 1 | . 1 . . . Ram . | . . . . . Kick . | . . . . . Crush . | . . . . . Escape Stasis . | . . . . . Rewire . | . . . . . Trap . | . . . . . Miscellaneous . | . . . . . Route ------- -11/Scrapyard -10/Materials (discovered 4 exits: [*Mat x2] / *Min / Sub) -10/Mines (discovered 4 exits: [*Mat x2] / *Exi / Sub) -10/Exiles -9/Mines History --------- Turn | Location | Event 26 | -11/Scrapyard | Discovered new exit (range 16) 99 | -11/Scrapyard | Entered Materials 330 | -10/Materials | Build established: Mutant 377 | -10/Materials | Discovered new exit (range 16) 422 | -10/Materials | Discovered new exit (range 14) 426 | -10/Materials | Central database locked down 592 | -10/Materials | Core integrity fell below 50% 762 | -10/Materials | Learned 2 Storage zone layouts 799 | -10/Materials | Derelicts attacked the area 866 | -10/Materials | Core integrity fell below 20% 896 | -10/Materials | Discovered new exit (range 13) 907 | -10/Materials | Learned location of Storage (-9) 1016 | -10/Materials | Learned Storage security intel 1054 | -10/Materials | Identified exit to Subcaves 1101 | -10/Materials | Identified exit to Mines 1397 | -10/Materials | Entered Mines 1843 | -10/Mines | Discovered new exit (range 5) 1971 | -10/Mines | Deemed a non-threat by the Exiles lab entrance 1974 | -10/Mines | Discovered new exit (range 5) 2076 | -10/Mines | Discovered new exit (range 15) 2173 | -10/Mines | Received a Rocket Launcher from a helpful Derelict 2952 | -10/Mines | Learned Materials security intel 3426 | -10/Mines | Entered Exiles 3510 | -10/Exiles | Met 8R-AWN 3564 | -10/Exiles | Met EX-HEX 3663 | -10/Exiles | Met EX-BIN 3737 | -10/Exiles | Aligned with FarCom system 3740 | -10/Exiles | Given EX-Vault access code 3836 | -10/Exiles | Opened EX-Vault 3881 | -10/Exiles | Found Skeleton Box 3920 | -10/Exiles | Found Trap Reconfigurator 3937 | -10/Exiles | Found Army-in-a-Box 4002 | -10/Exiles | Warned to stay clear of 0b10 Research branches 4095 | -10/Exiles | Met EX-DEC 4121 | -10/Exiles | Learned location of Zion (-6) 4261 | -10/Exiles | Discovered new exit (range 11) 4293 | -10/Exiles | Stole three prototypes: Skeleton Box, Trap Reconfigurator, Army-in-a-Box 4293 | -10/Exiles | Entered Mines 4383 | -9/Mines | Found a damaged Exp. Sensor Array with a note attached 4393 | -9/Mines | Found Prototype Device 4393 | -9/Mines | Identified Exp. Sensor Array 4460 | -9/Mines | Assembled infested the area 4460 | -9/Mines | Found a hidden stash of uninstalled traps 4491 | -9/Mines | Destroyed self with Rocket Launcher Last Messages --------------- 04394_ K-01 Serf collects debris. 04396_ Dropped Exp. Sensor Array. 04399_ Acquired Med. Armor Plating. 04402_ Dropped Lrg. Storage Unit. 04404_ Acquired Lrg. Storage Unit. 04405_ Dropped Lgt. Treads. 04405_ Dropped Lrg. Storage Unit. 04407_ Acquired Exp. Sensor Array. 04409_ Acquired Lgt. Treads. 04410_ Dropped Aluminum Leg. 04415_ R-06 Scavenger collects Aluminum Leg. 04418_ K-01 Serf collects debris. 04420_ R-06 Scavenger collects Lrg. Storage Unit. 04435_ K-01 Serf collects debris. 04460_ ALERT: Infestation in the mines, dispatching Demolisher response squad. 04460_ A stash of uninstalled traps is collected here! Map ----- +----------------------------------------------------+ | ???????#????# #### ##???????? | | ????? ??????# ???# #????????? | | ?????? ### ???# #????????? | | ????????## #### ####?????? | | ????????# #?????? | | ???????# #?????? | | ???? ###### #?????? | | ????? ###?????# #?????? | | ?????## #????????# ####??? | | ??????#####?????????# #??? | | ????????????????????# ## #??? | | ??????????????????### #? #??? | | ?????????????????## ## #??? | | ????????????????##& ### #??? | | ???????????????## & ##?# #??? | | ?????????????###&&& #??# #??? | | ?????????????# ##??# #??? | | ?????????????# # ##??## ###? | | ?????????????# ## #???# #? | | ?????????????###?# ##### #? | | ?????????????????# #? | | ?????????????????## #### #? | | ??????????????????# #??# #? | | ??????????????????# #??# #? | | ?????????????????## #### #? | | ?????????? aaaa a a @ #? | | ?????????????????####### #? | | ???????????????????????# #? | | ???????????????????????# #? | | ???????????????????????## ###? | | ????????????????????????# #??? | | ????????????????????????# #??? | | ????????????????????????# #??? | | ????????????????????????# #??? | | ????????????????????????? ???? | | ????????????????????????? ???? | | ????????????????????????? ???? | | ?????????????????????????#???? | | ?????????????????????????????? | | ?????????????????????????????? | | ?????????????????????????????? | | | | | | | | | | | | | | | | | | | +----------------------------------------------------+ Best States ------------- Heat Dissipation 25 Energy Generation 10 Energy Capacity 250 Matter Stores 300 Matter Capacity 300 Sight Range 16 Terrain Scan Range 14 Terrain Scan Density 10 Armor Coverage 225 Evasion (%) 40 Recoil Reduction 2 Item Schematics ----------------- None Robot Schematics ------------------ None Fabricated ------------ Nothing Alien Tech Used ----------------- None Achievements -------------- None Challenges ------------ None Game ------ Seed CompositeWaveMagmablaster Manual? 0 Play Time 00:20:57 Cumulative 22.2 hours Start 2024.08.17 @ 00:42:22 End 2024.08.17 @ 01:01:58 Sessions 1 Manual Loads 0 Difficulty Rogue Special Mode None Game No. 38 Rogue 38 Adventurer 0 Explorer 0 Win Type - Total 0 Types 0/0/0/0/0/0/0/0/0 Lore% 30 Gallery% 24 Achievement% 21 Wizard Run 0 Options --------- Layout 2 ASCII 0 Keyboard 1 Movement Arrows Keybinds 0 Fullscreen 2 Font 32/SmallcapsGlow Map View 50x44 Zoom Use 0% Tactical HUD 1 Map Filters NONE Filters NONE Steam 1 RUN: d19cbce4-cc90-4bf6-a34b-66115d8f3cd3